bitfinex/quotes_SOLUSD_20260203
["timestamp","ask_amount","ask_price","bid_price","bid_amount"]
[1770126436015,3.3067822,103.31,103.28,13.12803202]
[1770126436205,6.15067687,103.32,103.3,3.44561529]
[1770126437101,15.82937068,103.32,103.3,3.44561529]
[1770126438193,22.02727054,103.32,103.29,3.44561529]
[1770126438411,3.3067822,103.3,103.27,9.68283834]
[1770126438619,3.3067822,103.3,103.27,13.12845363]
[1770126439518,3.3067822,103.3,103.26,13.12948581]
[1770126439519,3.3067822,103.29,103.26,13.12948581]
[1770126440319,16.03967577,103.3,103.27,3.23118064]
[1770126440617,13.14855811,103.3,103.27,3.23118064]
[1770126440816,3.46794022,103.3,103.27,12.9143926]
[1770126441224,3.46794022,103.31,103.28,6.1222983]
[1770126441598,3.46794022,103.31,103.28,15.80435085]
[1770126442020,3.46794022,103.31,103.28,12.91323319]
[1770126443017,3.46794022,103.31,103.28,15.80435085]
[1770126443243,6.15067687,103.32,103.3,3.23118064]
[1770126443729,0.1,103.33,103.31,3.23118064]
[1770126444021,3.56794022,103.35,103.32,3.23118064]
[1770126444225,0.1,103.35,103.32,6.1222983]
[1770126444428,3.56794022,103.35,103.32,6.1130957]
[1770126445021,3.56794022,103.35,103.33,2.88191506]
[1770126445405,0.1,103.35,103.33,6.1130957]
[1770126446630,0.1,103.35,103.33,15.7906876]
[1770126447712,0.1,103.35,103.33,3.23118064]
[1770126450531,0.1,103.35,103.33,12.90885217]
[1770126452234,3.56794022,103.35,103.32,9.67843963]
[1770126452420,3.46794022,103.34,103.31,38.60825286]
[1770126452623,6.44985528,103.35,103.32,12.90984885]
[1770126453015,6.44985528,103.35,103.32,3.23118064]
[1770126453016,16.12579785,103.35,103.32,3.23118064]
[1770126453420,13.24388279,103.35,103.32,3.23118064]
[1770126454738,3.56794022,103.35,103.32,12.90961353]
[1770126455641,3.46794022,103.34,103.32,3.23118064]
[1770126459833,3.46794022,103.34,103.31,12.9105681]
[1770126460246,3.46794022,103.33,103.31,12.9105681]
[1770126460617,13.14480176,103.34,103.31,12.9105681]
[1770126462431,3.46794022,103.33,103.3,12.91137811]
[1770126462836,3.46794022,103.31,103.28,12.91322398]
[1770126463730,3.46794022,103.3,103.27,12.91407934]
[1770126464337,3.46794022,103.29,103.26,11.1837511]
[1770126464516,3.46794022,103.29,103.26,9.6837511]
[1770126464717,3.46794022,103.29,103.26,12.91493174]
[1770126465527,6.34985528,103.29,103.26,12.91493174]
[1770126465730,3.46794022,103.28,103.25,12.91595408]
[1770126465921,3.46794022,103.27,103.25,9.68477344]
[1770126466128,3.46794022,103.27,103.25,12.91595408]
[1770126466719,3.46794022,103.27,103.25,3.23118064]
[1770126467540,3.46794022,103.27,103.24,12.91693723]
[1770126469938,3.46794022,103.27,103.24,15.79885229]
[1770126471349,3.46794022,103.27,103.24,9.68575659]
[1770126471826,3.46794022,103.27,103.24,13.07665956]
[1770126473350,6.34985528,103.27,103.24,13.07665956]
[1770126474847,3.46794022,103.27,103.24,13.07665956]
[1770126475428,3.31408145,103.28,103.25,3.22377134]
[1770126476151,6.19599651,103.27,103.25,3.22377134]
[1770126480449,3.31408145,103.26,103.24,12.90952793]
[1770126482451,6.19599651,103.27,103.24,12.90952793]
[1770126485458,3.31408145,103.27,103.24,12.90952793]
[1770126485655,6.19599651,103.27,103.24,12.90952793]
[1770126487957,3.31408145,103.26,103.24,12.90952793]
[1770126488756,3.31408145,103.25,103.21,57.22592179]
[1770126488957,3.31408145,103.24,103.21,12.91232001]
[1770126491138,3.31408145,103.25,103.22,6.1056864]
[1770126491344,3.31408145,103.25,103.23,3.22377134]
[1770126495864,3.31408145,103.24,103.22,3.22377134]
[1770126496762,3.31408145,103.24,103.22,12.91171895]
[1770126497241,3.31408145,103.24,103.22,9.68794761]
[1770126497637,3.31408145,103.24,103.22,12.91171895]
[1770126497839,3.31408145,103.25,103.23,3.22377134]
[1770126498043,3.31408145,103.27,103.24,3.22377134]
[1770126498761,3.31408145,103.27,103.24,12.90984498]
[1770126498972,3.31408145,103.27,103.24,15.79176004]
[1770126499277,3.31408145,103.27,103.24,12.90984498]
[1770126500166,3.31408145,103.28,103.25,3.22377134]
[1770126500351,3.31408145,103.28,103.25,6.1056864]
[1770126502763,3.51570977,103.27,103.25,6.1056864]
[1770126502963,3.51570977,103.27,103.24,15.92547797]
[1770126506169,3.51570977,103.26,103.23,40.1434707]
[1770126506461,3.51570977,103.26,103.23,15.93093716]
[1770126506645,3.51570977,103.26,103.24,12.57294103]
[1770126507071,3.51570977,103.26,103.24,15.9304303]
[1770126507457,9.68299486,103.28,103.24,15.9304303]
[1770126507651,3.51570977,103.27,103.24,15.9304303]
[1770126511582,3.51570977,103.26,103.23,15.93106202]
[1770126513486,3.51570977,103.26,103.24,3.35748927]
[1770126515163,3.51570977,103.25,103.22,13.04495443]
[1770126517073,3.51570977,103.25,103.23,3.35748927]
[1770126517472,3.51570977,103.26,103.24,3.35748927]
[1770126521294,3.51570977,103.26,103.23,15.93104009]
[1770126521696,3.51570977,103.26,103.24,3.35748927]
[1770126525499,3.51570977,103.26,103.24,6.24440201]
[1770126525798,3.51570977,103.26,103.24,15.93047901]
[1770126526100,13.19828867,103.28,103.25,13.04253294]
[1770126526394,9.6825789,103.28,103.25,13.04253294]
[1770126526600,3.51570977,103.27,103.25,13.04253294]
[1770126527993,3.51570977,103.27,103.25,9.68504367]
[1770126528583,3.51570977,103.27,103.25,13.04253294]
[1770126529697,3.51570977,103.27,103.25,9.68504367]
[1770126529898,3.51570977,103.27,103.23,3.35748927]
[1770126529899,3.51570977,103.26,103.23,3.35748927]
[1770126530403,3.51570977,103.26,103.23,13.04424147]
[1770126530780,3.51570977,103.26,103.23,15.93115421]
[1770126534398,3.51570977,103.26,103.24,3.32383457]
[1770126535104,13.18335073,103.27,103.24,3.32383457]
[1770126535406,13.18335073,103.27,103.25,3.32383457]
[1770126535701,13.18335073,103.27,103.24,6.21074731]
[1770126535902,13.18320112,103.27,103.24,6.21074731]
[1770126536500,3.49977558,103.26,103.24,6.21074731]
[1770126537604,3.49977558,103.26,103.23,12.57366494]
[1770126537790,3.49977558,103.26,103.24,3.32383457]
[1770126538799,3.49977558,103.26,103.23,15.89749951]
[1770126539800,3.49977558,103.26,103.24,6.21074731]
[1770126540007,13.18244211,103.28,103.25,3.32383457]
[1770126540506,9.68266653,103.28,103.25,3.32383457]
[1770126540806,3.49977558,103.27,103.25,3.32383457]
[1770126541890,3.49977558,103.27,103.24,15.89632844]
[1770126542304,3.49977558,103.27,103.25,15.89597246]
[1770126543106,3.49977558,103.27,103.25,13.00905972]
[1770126544006,3.49977558,103.27,103.25,3.32383457]
[1770126549900,3.49977558,103.27,103.24,15.89633694]
[1770126558995,3.49977558,103.28,103.26,3.32383457]
[1770126561218,3.49977558,103.28,103.25,16.00293556]
[1770126566426,3.49977558,103.28,103.25,16.00187757]
[1770126570627,3.49977558,103.28,103.25,13.11602282]
[1770126570812,3.49977558,103.28,103.25,16.00187757]
[1770126572511,3.49977558,103.28,103.26,3.43083267]
[1770126577330,12.94502474,103.3,103.27,6.31668742]
[1770126577824,3.26401621,103.29,103.27,3.43083267]
[1770126578010,3.26401621,103.29,103.26,12.57010347]
[1770126578011,3.26401621,103.29,103.26,3.43083267]
[1770126579032,3.26401621,103.29,103.26,13.11469194]
[1770126585233,3.26401621,103.28,103.25,13.11564471]
[1770126585628,3.26401621,103.28,103.26,3.43083267]
[1770126587745,12.94500589,103.3,103.27,3.43083267]
[1770126588118,3.26401621,103.29,103.27,3.43083267]
[1770126591839,3.41465576,103.3,103.28,3.34534884]
[1770126594840,3.41465576,103.3,103.28,13.02695364]
[1770126595642,3.57790448,103.29,103.28,9.6816048]
[1770126595847,3.57790448,103.29,103.27,9.68276997]
[1770126596431,3.57790448,103.29,103.27,13.01763899]
[1770126598851,3.57790448,103.3,103.28,3.33486902]
[1770126599524,3.57790448,103.34,103.3,3.33486902]
[1770126599727,3.57790448,103.34,103.31,6.22072377]
[1770126600737,3.57790448,103.34,103.31,15.89957561]
[1770126601631,12.66229149,103.35,103.32,3.33486902]
[1770126601632,3.67790448,103.35,103.32,3.33486902]
[1770126601831,3.67790448,103.35,103.32,6.22072377]
[1770126602047,3.57790448,103.34,103.31,15.89957561]
[1770126602256,3.57790448,103.34,103.31,13.01372086]
[1770126602458,3.57790448,103.33,103.31,13.01372086]
[1770126603746,3.67790448,103.35,103.32,2.88585475]
[1770126603932,3.67790448,103.35,103.33,6.22072377]
[1770126604649,3.67790448,103.35,103.33,15.89770742]
[1770126604944,0.1,103.35,103.33,15.89770742]
[1770126605531,0.1,103.35,103.34,3.33486902]
[1770126605933,0.1,103.35,103.33,15.89770742]
[1770126606152,3.57790448,103.36,103.34,6.22072377]
[1770126606451,3.67790448,103.37,103.34,6.22072377]
[1770126606649,3.67790448,103.37,103.34,15.89698882]
[1770126606846,3.67790448,103.37,103.35,6.22072377]
[1770126607634,0.1,103.37,103.35,6.22072377]
[1770126608156,3.67790448,103.37,103.35,6.22072377]
[1770126608456,0.1,103.37,103.35,6.22072377]
[1770126609068,0.1,103.37,103.36,3.33486902]
[1770126609359,3.57790448,103.39,103.36,6.22072377]
[1770126609541,3.57790448,103.39,103.37,3.33486902]
[1770126610031,3.57790448,103.4,103.37,6.22072377]
[1770126610233,3.57790448,103.4,103.37,3.33486902]
[1770126610847,3.57790448,103.39,103.36,6.22072377]
[1770126611044,3.57790448,103.39,103.36,15.89510054]
[1770126611858,3.57790448,103.39,103.36,13.00924579]
[1770126612357,6.46375923,103.39,103.36,13.00924579]
[1770126612539,3.57790448,103.39,103.37,3.33486902]
[1770126612738,6.46375923,103.4,103.37,3.33486902]
[1770126612938,3.57790448,103.39,103.37,3.33486902]
[1770126613837,15.71826569,103.41,103.38,6.22072377]
[1770126613838,9.6255218,103.41,103.38,6.22072377]
[1770126614145,6.04761732,103.41,103.39,3.33486902]
[1770126614350,6.04761732,103.41,103.39,13.0062806]
[1770126615452,9.6255218,103.41,103.39,13.0062806]
[1770126615855,9.6255218,103.41,103.39,9.67141158]
[1770126616152,6.04761732,103.41,103.39,9.67141158]
[1770126616359,9.6255218,103.41,103.39,9.67141158]
[1770126616973,3.57790448,103.4,103.38,9.67271625]
[1770126617268,3.57790448,103.4,103.39,9.67211529]
[1770126617666,9.6255218,103.41,103.39,13.00698431]
[1770126620061,9.6255218,103.41,103.39,9.67211529]
[1770126620558,9.6255218,103.41,103.39,13.25217093]
[1770126623754,9.6255218,103.41,103.38,9.67269847]
[1770126623755,3.42165164,103.4,103.38,9.67269847]
[1770126624070,3.42165164,103.39,103.37,36.55360695]
[1770126624368,3.42165164,103.39,103.37,26.88]
[1770126624573,6.30750639,103.39,103.37,26.88]
[1770126624750,3.42165164,103.38,103.37,26.88]
[1770126624949,3.42165164,103.4,103.37,40.13404228]
[1770126625352,9.46926896,103.41,103.38,3.58005564]
[1770126625868,3.42165164,103.4,103.38,13.25305375]
[1770126626477,6.04761732,103.41,103.39,3.58005564]
[1770126627170,9.46926896,103.41,103.39,3.58005564]
[1770126627874,9.46926896,103.41,103.39,13.25151725]
[1770126630384,3.42165164,103.4,103.39,9.67146161]
[1770126630580,3.42165164,103.4,103.38,13.25261955]
[1770126632080,3.42165164,103.4,103.38,9.67256391]
[1770126632380,3.42165164,103.39,103.36,16.13294395]
[1770126632561,3.42165164,103.39,103.36,13.25408658]
[1770126632980,12.55011887,103.4,103.36,9.67403094]
[1770126632981,6.30050901,103.38,103.36,9.67403094]
[1770126633170,3.42165164,103.38,103.35,13.25555218]
[1770126634077,3.42165164,103.38,103.36,9.67474039]
[1770126634273,3.42165164,103.38,103.36,13.25479603]
[1770126636688,3.42165164,103.38,103.36,9.67474039]
[1770126636893,6.30050901,103.38,103.35,13.25540499]
[1770126637383,3.42165164,103.38,103.35,13.25540499]
[1770126637561,3.42165164,103.38,103.36,9.67474391]
[1770126637765,3.42165164,103.38,103.36,13.25479955]
[1770126638576,6.30050901,103.39,103.36,13.25479955]
[1770126639986,3.42165164,103.38,103.36,13.25479955]
[1770126642189,6.30050901,103.37,103.35,9.67585873]
[1770126645391,3.42165164,103.36,103.35,9.67585873]
[1770126645598,3.42165164,103.36,103.34,13.25644839]
[1770126646802,6.30050901,103.37,103.34,37.448436]
[1770126647100,3.42165164,103.37,103.35,3.58005564]
[1770126649290,3.42165164,103.37,103.35,13.2550443]
[1770126652113,3.29217062,103.35,103.33,26.88]
[1770126652394,3.29217062,103.33,103.31,12.93372529]
[1770126652579,6.17102799,103.33,103.31,12.93372529]
[1770126652779,3.53477095,103.32,103.3,37.18216348]
[1770126652979,3.53477095,103.32,103.3,12.9812398]
[1770126653180,6.41362832,103.32,103.3,12.9812398]
[1770126653394,6.41362832,103.32,103.3,9.6799104]
[1770126654204,2.87885737,103.31,103.29,12.98232402]
[1770126654584,6.41362832,103.32,103.29,12.98232402]
[1770126655812,6.41362832,103.31,103.29,9.68099462]
[1770126656096,3.53477095,103.31,103.29,12.98232402]
[1770126657798,2.87885737,103.32,103.29,12.98232402]
[1770126658101,2.87885737,103.35,103.31,3.3013294]
[1770126659088,2.87885737,103.35,103.31,12.97999785]
[1770126659485,2.87885737,103.35,103.32,3.3013294]
[1770126659693,2.87885737,103.36,103.33,3.3013294]
[1770126659999,3.53477095,103.37,103.34,6.18018677]
[1770126660182,2.87885737,103.38,103.35,3.3013294]
[1770126660183,3.53477095,103.38,103.35,3.3013294]
[1770126660384,3.53477095,103.38,103.35,6.18018677]
[1770126660691,3.53477095,103.38,103.35,3.3013294]
[1770126660899,6.41362832,103.38,103.35,3.3013294]
[1770126661201,6.41362832,103.38,103.35,12.97644116]
[1770126664711,2.87885737,103.36,103.29,3.3013294]
[1770126664913,2.87885737,103.35,103.32,12.97944329]
[1770126665285,6.41362832,103.35,103.32,12.97944329]
[1770126668811,6.41362832,103.35,103.32,9.67827151]
[1770126668812,3.53477095,103.34,103.32,9.67827151]
[1770126669397,6.41362832,103.34,103.31,12.98051843]
[1770126669889,6.41362832,103.32,103.29,3.3013294]
[1770126670086,2.87885737,103.31,103.29,3.3013294]
[1770126670512,45.84845148,103.38,103.28,26.88]
[1770126670513,6.41362832,103.3,103.28,26.88]
[1770126670813,6.41362832,103.3,103.28,9.68196959]
[1770126671513,6.41362832,103.31,103.28,12.98329899]
[1770126675927,6.37043639,103.29,103.26,3.5013294]
[1770126676118,6.37043639,103.29,103.26,13.18523827]
[1770126677514,6.34198506,103.28,103.26,9.88390887]
[1770126679414,6.34198506,103.28,103.26,0.2]
[1770126681506,3.14368015,103.26,103.24,9.68560398]
[1770126681722,6.02253752,103.26,103.23,12.94500223]
[1770126682027,6.02253752,103.25,103.22,30.13840876]
[1770126682436,6.02253752,103.25,103.22,39.82593158]
[1770126682728,6.02253752,103.26,103.23,3.25840876]
[1770126683918,3.14368015,103.25,103.22,39.82593158]
[1770126684126,6.02253752,103.25,103.22,30.13840876]
[1770126684434,3.14368015,103.22,103.2,0.2]
[1770126684637,3.14368015,103.23,103.2,3.45840876]
[1770126684813,6.02253752,103.23,103.2,3.45840876]
[1770126685333,6.02253752,103.23,103.2,13.14831259]
[1770126685718,6.02178447,103.22,103.2,0.2]
[1770126686439,6.03288234,103.22,103.18,12.94969612]
[1770126686945,6.03288234,103.22,103.19,12.94916578]
[1770126687413,6.00850372,103.21,103.18,12.9496764]
[1770126688236,5.9968608,103.2,103.17,12.95068823]
[1770126690426,5.97397463,103.19,103.16,9.89328939]
[1770126690629,5.97397463,103.19,103.16,13.15169815]
[1770126691149,5.97397463,103.19,103.16,3.45840876]
[1770126691332,2.88995524,103.18,103.16,0.2]
[1770126691851,3.08401939,103.19,103.16,3.45840876]
[1770126692027,3.06165593,103.22,103.18,3.25840876]
[1770126692227,5.95161117,103.22,103.18,3.25840876]
[1770126692550,5.95161117,103.23,103.19,6.148364]
[1770126693049,5.94062172,103.22,103.19,3.25840876]
[1770126693724,5.94062172,103.21,103.18,3.25840876]
[1770126693929,3.03980326,103.22,103.18,12.94961803]
[1770126694249,5.9297585,103.22,103.19,3.25840876]
[1770126694649,5.9297585,103.22,103.18,12.94961803]
[1770126695944,5.9297585,103.22,103.19,3.25840876]
[1770126696850,5.90840494,103.21,103.18,12.94961803]
[1770126697147,3.0184497,103.21,103.18,12.94961803]
[1770126699249,5.90840494,103.21,103.18,12.94961803]
[1770126699942,2.88995524,103.21,103.18,9.69120927]
[1770126700150,5.86714983,103.22,103.19,3.25840876]
[1770126700668,2.88995524,103.24,103.21,3.25840876]
[1770126701156,2.96717526,103.23,103.2,3.25840876]
[1770126701336,5.8571305,103.23,103.2,3.25840876]
[1770126702352,5.8571305,103.23,103.2,12.94776731]
[1770126703057,5.83743577,103.22,103.19,12.9487942]
[1770126703255,5.83743577,103.21,103.18,12.9499025]
[1770126704355,5.82775773,103.2,103.17,12.95067004]
[1770126704540,2.88995524,103.19,103.16,13.15180071]
[1770126705354,5.81819086,103.19,103.16,13.15180071]
[1770126707068,2.88995524,103.2,103.17,3.25840876]
[1770126707270,5.79938551,103.22,103.18,3.25840876]
[1770126707759,5.79938551,103.22,103.19,3.25840876]
[1770126707958,15.47677736,103.24,103.2,3.25840876]
[1770126708464,15.47677736,103.24,103.2,12.94760354]
[1770126709159,2.88995524,103.23,103.2,12.94760354]
[1770126709555,12.58682212,103.24,103.21,3.25840876]
[1770126709556,15.47677736,103.24,103.21,3.25840876]
[1770126710938,7.14836916,103.27,103.23,3.07626831]
[1770126711143,5.75422987,103.29,103.26,3.07626831]
[1770126711660,5.75422987,103.28,103.25,3.07626831]
[1770126711847,5.75422987,103.28,103.24,12.76165446]
[1770126712045,2.85555229,103.3,103.25,5.96622355]
[1770126712246,5.74550753,103.29,103.25,5.96622355]
[1770126712448,2.85555229,103.29,103.25,5.96622355]
[1770126712656,2.85555229,103.29,103.26,12.76050552]
[1770126713368,5.74550753,103.29,103.26,12.76050552]
[1770126713577,2.85555229,103.29,103.26,12.76050552]
[1770126713746,5.74550753,103.29,103.26,12.76050552]
[1770126714374,2.85555229,103.29,103.26,12.76050552]
[1770126714677,10.58412396,103.29,103.26,12.76050552]
[1770126715672,2.82165337,103.3,103.26,20.48907719]
[1770126715845,2.82165337,103.3,103.27,3.03629248]
[1770126716371,2.82165337,103.3,103.27,12.71945721]
[1770126716668,10.55022504,103.3,103.27,12.71945721]
[1770126716867,10.55022504,103.3,103.25,10.76486415]
[1770126716868,10.54199226,103.29,103.25,10.76486415]
[1770126717054,7.72857167,103.28,103.25,12.72106795]
[1770126718365,20.22349678,103.29,103.25,12.72106795]
[1770126718766,10.52580928,103.28,103.25,3.03629248]
[1770126719073,10.52580928,103.28,103.25,12.72151099]
[1770126719367,2.78928527,103.27,103.22,29.95629248]
[1770126719574,2.78928527,103.26,103.23,3.03629248]
[1770126719780,2.78928527,103.26,103.22,20.45237636]
[1770126720071,10.51785694,103.24,103.21,3.03629248]
[1770126720874,20.19378663,103.27,103.23,3.03629248]
[1770126721067,10.50999593,103.27,103.24,3.03629248]
[1770126721265,2.78142426,103.27,103.24,3.03629248]
[1770126721468,20.19340585,103.27,103.23,3.03629248]
[1770126722374,20.19340585,103.27,103.23,12.72276197]
[1770126722873,2.76597209,103.26,103.23,12.72276197]
[1770126723177,10.49454376,103.26,103.23,9.68683776]
[1770126723368,20.17073472,103.27,103.23,12.72313024]
[1770126723578,10.48695053,103.27,103.23,12.72313024]
[1770126725568,20.17036168,103.27,103.23,12.72313024]
[1770126726185,7.72857167,103.26,103.23,12.72313024]
[1770126726584,20.17036168,103.27,103.23,12.72313024]
[1770126728285,20.1336839,103.27,103.23,12.72313024]
[1770126729082,10.45027275,103.27,103.23,12.72313024]
[1770126729374,20.12517999,103.29,103.25,3.03629248]
[1770126729887,7.72857167,103.27,103.24,3.03629248]
[1770126730262,10.43618465,103.29,103.26,3.03629248]
[1770126731591,20.117712,103.29,103.26,3.03629248]
[1770126731889,24.20117733,103.31,103.26,3.03629248]
[1770126731890,2.70069006,103.3,103.26,3.03629248]
[1770126732179,7.72857167,103.3,103.27,12.71947029]
[1770126732382,10.42241833,103.3,103.27,12.71947029]
[1770126733278,2.69384666,103.3,103.27,12.71947029]
[1770126733485,20.09585465,103.31,103.27,12.71947029]
[1770126735686,7.72857167,103.3,103.27,12.71947029]
[1770126736398,2.88502417,103.3,103.27,12.71947029]
[1770126736589,2.88502417,103.3,103.26,27.09564278]
[1770126736590,2.6672501,103.29,103.26,12.72016424]
[1770126736796,5.55227427,103.29,103.26,12.72016424]
[1770126737476,2.88502417,103.28,103.25,12.72103322]
[1770126737671,5.54581496,103.28,103.25,12.72103322]
[1770126737980,2.88502417,103.27,103.25,9.68519152]
[1770126738903,2.88502417,103.27,103.24,12.72191066]
[1770126739497,15.21662439,103.27,103.24,3.03629248]
[1770126739701,5.53311806,103.26,103.23,12.72292859]
[1770126741383,5.51461438,103.27,103.24,2.96481724]
[1770126743586,5.51461438,103.27,103.24,12.65090727]
[1770126743793,2.62959021,103.27,103.24,12.65090727]
[1770126744982,15.17969114,103.28,103.24,12.65090727]
[1770126745395,5.49091954,103.27,103.24,12.65090727]
[1770126745892,15.17467262,103.27,103.24,2.96481724]
[1770126746499,5.48516494,103.25,103.22,12.65239125]
[1770126746802,2.88502417,103.25,103.22,12.65239125]
[1770126746985,5.47947645,103.25,103.22,2.96481724]
[1770126747180,2.88502417,103.24,103.22,2.96481724]
[1770126747782,5.47947645,103.24,103.21,12.65335548]
[1770126747991,15.1656782,103.24,103.21,12.65335548]
[1770126748481,5.48329025,103.24,103.21,12.65335548]
[1770126749399,15.16951003,103.24,103.21,12.65335548]
[1770126750894,5.48329025,103.24,103.21,12.65335548]
[1770126751608,2.88883797,103.24,103.22,2.96481724]
[1770126752007,5.45581296,103.24,103.21,12.65335548]
[1770126752701,15.14201627,103.24,103.21,12.65335548]
[1770126754404,5.44525881,103.23,103.2,12.65421959]
[1770126754905,15.13276021,103.23,103.2,2.96481724]
[1770126755089,2.88883797,103.22,103.2,2.96481724]
[1770126755295,5.44007248,103.22,103.19,9.6903513]
[1770126755597,5.44007248,103.22,103.19,12.65516854]
[1770126757295,2.88883797,103.22,103.2,2.96481724]
[1770126761101,2.52134383,103.24,103.21,2.96481724]
[1770126761411,15.09587178,103.25,103.21,2.96481724]
[1770126762190,2.88883797,103.24,103.21,2.96481724]
[1770126763003,2.76384463,103.24,103.21,12.65304558]
[1770126763188,2.76384463,103.24,103.22,2.96481724]
[1770126763608,2.88883797,103.23,103.21,2.96481724]
[1770126767519,2.88883797,103.22,103.21,2.96481724]
[1770126768087,12.17470643,103.25,103.22,2.96481724]
[1770126768287,2.88883797,103.23,103.21,2.96481724]
[1770126768498,2.88883797,103.22,103.2,12.65428]
[1770126768705,2.48899174,103.23,103.2,12.65428]
[1770126768706,5.37782971,103.23,103.2,12.65428]
[1770126769811,15.06032707,103.24,103.21,2.96481724]
[1770126770112,5.37341787,103.24,103.21,2.96481724]
[1770126772396,2.88883797,103.24,103.22,2.91353875]
[1770126773008,5.35627146,103.25,103.22,2.91353875]
[1770126773509,2.88883797,103.24,103.22,2.91353875]
[1770126775715,2.88883797,103.24,103.22,12.60155495]
[1770126775911,2.88883797,103.25,103.23,2.98171554]
[1770126779422,15.02461203,103.26,103.24,2.98171554]
[1770126779717,15.02461203,103.26,103.23,12.6687639]
[1770126780998,2.88883797,103.26,103.24,2.98171554]
[1770126781203,15.00052577,103.27,103.24,2.98171554]
[1770126782225,2.88883797,103.26,103.24,2.98171554]
[1770126785597,14.98485579,103.28,103.25,2.98171554]
[1770126786106,12.57156267,103.28,103.25,2.98171554]
[1770126786311,14.98051493,103.29,103.25,2.98171554]
[1770126787021,14.98051493,103.29,103.26,2.98171554]
[1770126788820,12.56990264,103.3,103.27,2.98171554]
[1770126789130,12.08043058,103.3,103.27,2.98171554]
[1770126789310,14.96926855,103.3,103.27,2.98171554]
[1770126795231,14.96926855,103.3,103.27,12.66492701]
[1770126795422,5.28820388,103.3,103.28,2.98171554]
[1770126795736,14.94908999,103.3,103.27,12.66492701]
[1770126795920,2.37964542,103.29,103.26,2.98171554]
[1770126796113,2.37648953,103.31,103.28,2.98171554]
[1770126796630,2.37648953,103.3,103.28,2.98171554]
[1770126797321,5.2653275,103.3,103.28,2.98171554]
[1770126798936,2.88883797,103.29,103.26,9.68380912]
[1770126799233,5.92023342,103.29,103.26,9.68380912]
[1770126800933,5.92023342,103.29,103.26,12.57742098]
[1770126801432,15.60187929,103.29,103.26,2.89361186]
[1770126801825,5.92023342,103.29,103.26,12.577893]
[1770126802026,5.92023342,103.29,103.27,2.89361186]
[1770126802536,5.92023342,103.29,103.26,12.577893]
[1770126807646,15.60178941,103.29,103.26,12.577893]
[1770126808444,15.59880165,103.29,103.26,12.577893]
[1770126809425,5.83840706,103.28,103.26,2.89361186]
[1770126809948,15.51996305,103.29,103.26,12.577774]
[1770126810427,15.51996305,103.29,103.26,2.89361186]
[1770126811149,15.51996305,103.29,103.26,12.57788201]
[1770126812142,15.51913744,103.3,103.27,2.89361186]
[1770126812358,15.51847895,103.31,103.27,2.89361186]
[1770126813350,5.83840706,103.29,103.26,12.57788201]
[1770126813649,2.88585021,103.28,103.26,2.89361186]
[1770126816048,15.52105034,103.28,103.26,2.89361186]
[1770126816253,15.52105034,103.28,103.25,2.89361186]
[1770126818144,5.83840706,103.27,103.24,12.57922686]
[1770126818353,2.95255685,103.27,103.24,12.57922686]
[1770126818549,5.83840706,103.27,103.24,12.57922686]
[1770126818850,5.83840706,103.28,103.25,2.89361186]
[1770126819053,15.5208495,103.28,103.25,2.89361186]
[1770126820246,2.95255685,103.27,103.25,2.89361186]
[1770126820553,15.5208495,103.28,103.25,2.89361186]
[1770126822453,15.5208495,103.28,103.25,12.57878511]
[1770126826160,15.5208495,103.28,103.25,2.89361186]
[1770126826366,5.83840706,103.27,103.24,12.57920708]
[1770126826665,15.5208495,103.28,103.25,2.89361186]
[1770126827765,2.95255685,103.28,103.26,2.89361186]
[1770126827935,5.83840706,103.28,103.25,12.57882063]
[1770126828857,2.88585021,103.28,103.26,2.89361186]
[1770126829144,39.72434049,103.29,103.26,2.89361186]
[1770126831475,15.52059174,103.29,103.26,2.89361186]
[1770126832278,15.52059174,103.29,103.26,12.57789369]
[1770126832455,15.42731701,103.31,103.27,2.97742867]
[1770126832649,15.42731701,103.31,103.27,2.88585021]
[1770126832844,15.42731701,103.31,103.28,2.80937629]
[1770126835571,5.85003266,103.3,103.27,12.49203728]
[1770126837047,16.91837262,103.32,103.28,2.80937629]
[1770126837247,2.88585021,103.31,103.28,2.80937629]
[1770126837446,15.52895198,103.32,103.28,2.80937629]
[1770126837854,2.96418245,103.31,103.28,2.80937629]
[1770126838575,2.96418245,103.31,103.29,2.80937629]
[1770126840855,15.52895198,103.32,103.29,2.80937629]
[1770126842596,9.67891932,103.32,103.3,2.80937629]
[1770126842772,2.96418245,103.35,103.31,2.80937629]
[1770126843089,5.13956414,103.36,103.33,2.80937629]
[1770126843282,0.1,103.36,103.34,2.80937629]
[1770126843879,2.96418245,103.35,103.32,2.80937629]
[1770126844257,5.85003266,103.35,103.32,2.80937629]
[1770126844457,2.88585021,103.35,103.32,2.80937629]
[1770126844990,5.85003266,103.35,103.32,12.4877173]
[1770126845151,5.85003266,103.35,103.33,2.80937629]
[1770126845585,15.52629033,103.35,103.32,2.80937629]
[1770126845765,5.85003266,103.33,103.3,12.48946349]
[1770126845965,2.88585021,103.32,103.29,2.80937629]
[1770126846158,5.85003266,103.31,103.28,12.49139147]
[1770126846360,5.85003266,103.31,103.29,2.80937629]
[1770126846573,2.88585021,103.31,103.29,2.80937629]
[1770126847376,2.88585021,103.3,103.28,2.80937629]